Body Name,Body,Transaction Date,Value,Supplier,Description,Purchase Type,Cost Center,Department,Section
South Ribble Council,http://Statistics.Data.gov.uk\Doc\Local Authority\30UN,19/04/2022,73.50,Premier Inn PR5 6BZ,NAME REDACTED 1 night Premier Inn PR5 6BZ,Accomodation,124250,COMU-Communities,JBC-Homelessness
South Ribble Council,http://Statistics.Data.gov.uk\Doc\Local Authority\30UN,20/04/2022,60.50,Premier Inn PR5 6BZ,NAME REDACTED 1 night Premier Inn PR5 6BZ.,Accomodation,124250,COMU-Communities,JBC-Homelessness
South Ribble Council,http://Statistics.Data.gov.uk\Doc\Local Authority\30UN,21/04/2022,277.50,Premier Inn PR6 8AB,NAME REDACTED 4 nights at Premier Inn Chorley PR6 8AB 21/04/2022 - 25/04/2022,Accomodation,124050,COMU-Communities,JBC-Homelessness
South Ribble Council,http://Statistics.Data.gov.uk\Doc\Local Authority\30UN,25/04/2022,74.00,Premier Inn PR1 2AB,NAME REDACTED new placement 1 night at Premier Inn PR1 2AB 25-26/04/2022,Accomodation,124250,COMU-Communities,JBC-Homelessness
South Ribble Council,http://Statistics.Data.gov.uk\Doc\Local Authority\30UN,27/04/2022,79.54,Travelodge PR1 5NX,NAME REDACTED 1 night Travelodge PR1 5NX 27-28/04/2022,Accomodation,124250,COMU-Communities,JBC-Homelessness
South Ribble Council,http://Statistics.Data.gov.uk\Doc\Local Authority\30UN,28/04/2022,20.00,Millers Taxis,NAME REDACTED taxi fare 28/04/2022,Travel,124250,COMU-Communities,JBC-Homelessness
South Ribble Council,http://Statistics.Data.gov.uk\Doc\Local Authority\30UN,28/04/2022,95.85,Travelodge PR1 5NX,NAME REDACTED 1 night Travelodge PR1 5NX 28-29/04/2022,Accomodation,124250,COMU-Communities,JBC-Homelessness
South Ribble Council,http://Statistics.Data.gov.uk\Doc\Local Authority\30UN,29/04/2022,37.72,Travelodge PR1 6NX,Extra night booked at Travelodge PR1 6NX check in 02/05/2022 check out 03/05/2022,Accomodation,124250,COMU-Communities,JBC-Homelessness
South Ribble Council,http://Statistics.Data.gov.uk\Doc\Local Authority\30UN,29/04/2022,164.18,Travelodge PR1 5NX,NAME REDACTED 3 nights Travelodge PR1 5NX 29/04/2022-02/05/2022,Accomodation,124250,COMU-Communities,JBC-Homelessness
South Ribble Council,http://Statistics.Data.gov.uk\Doc\Local Authority\30UN,05/05/2022,170.00,Ibis Preston North PR3 5JE,NAME REDACTED 2 nights Ibis Preston North 05/05/2022-07/05/2022 REDACTED,Accomodation,124250,COMU-Communities,JBC-Homelessness
South Ribble Council,http://Statistics.Data.gov.uk\Doc\Local Authority\30UN,19/05/2022,99.43,Holiday Inn Express PR5 8AA,NAME REDACTED 1 night HIEX PR5 8AA,Accomodation,124250,COMU-Communities,JBC-Homelessness
South Ribble Council,http://Statistics.Data.gov.uk\Doc\Local Authority\30UN,24/05/2022,77.50,Premier Inn PR1 2AB,NAMES REDACTED 1 night Premier Inn PR1 2AB,Accomodation,124250,COMU-Communities,JBC-Homelessness
South Ribble Council,http://Statistics.Data.gov.uk\Doc\Local Authority\30UN,24/05/2022,85.50,Premier Inn PR5 6BZ,NAME REDACTED 1 night Premier inn PR5 6BZ,Accomodation,124250,COMU-Communities,JBC-Homelessness
South Ribble Council,http://Statistics.Data.gov.uk\Doc\Local Authority\30UN,25/05/2022,84.39,Holiday Inn Express PR5 8AA,NAME REDACTED HIEX PR5 8AA 25/05/2022-26/05/2022,Accomodation,124050,COMU-Communities,JBC-Homelessness
South Ribble Council,http://Statistics.Data.gov.uk\Doc\Local Authority\30UN,25/05/2022,84.39,Holiday Inn Express PR5 8AA,NAME REDACTED HIEX PR5 8AA 25/05/2022-26/05/2022,Accomodation,124250,COMU-Communities,JBC-Homelessness
South Ribble Council,http://Statistics.Data.gov.uk\Doc\Local Authority\30UN,09/06/2022,83.00,Premier Inn BB PR5 6BZ,NAME REDACTED Premier Inn BB PR5 6BZ 09.06.2022-10.06.2022,Accomodation,124250,COMU-Communities,JBC-Homelessness
South Ribble Council,http://Statistics.Data.gov.uk\Doc\Local Authority\30UN,09/06/2022,759.00,HIEX PR5 8AA,NAME REDACTED HIEX PR5 8AA 30/05/2022-08/06/2022,Accomodation,124250,COMU-Communities,JBC-Homelessness
South Ribble Council,http://Statistics.Data.gov.uk\Doc\Local Authority\30UN,13/06/2022,161.50,Premier Inn BB PR5 6BZ,NAME REDACTED Premier Inn BB PR5 6BZ 13.06.2022-15.06.2022,Accomodation,124250,COMU-Communities,JBC-Homelessness
South Ribble Council,http://Statistics.Data.gov.uk\Doc\Local Authority\30UN,13/06/2022,263.50,Premier Inn PR1 2AB,NAMES REDACTED Premier Inn PR1 2AB 13.06.2022-15.06.2022,Accomodation,124050,COMU-Communities,JBC-Homelessness
South Ribble Council,http://Statistics.Data.gov.uk\Doc\Local Authority\30UN,15/06/2022,82.00,Premier Inn PR1 2AB,NAME REDACTED Premier Inn PR1 2AB 15.06.2022-16.06.2022,Accomodation,124250,COMU-Communities,JBC-Homelessness
South Ribble Council,http://Statistics.Data.gov.uk\Doc\Local Authority\30UN,15/06/2022,149.50,Premier Inn PR1 2AB,NAMES REDACTED Premier Inn PR1 2AB 15.06.2022-17.06.2022,Accomodation,124050,COMU-Communities,JBC-Homelessness
South Ribble Council,http://Statistics.Data.gov.uk\Doc\Local Authority\30UN,17/06/2022,211.50,Premier Inn PR1 2AB,NAMES REDACTED Premier Inn PR1 2AB 17.06.2022-20.06.2022,Accomodation,124050,COMU-Communities,JBC-Homelessness
South Ribble Council,http://Statistics.Data.gov.uk\Doc\Local Authority\30UN,17/06/2022,216.00,Premier Inn PR1 2AB,NAME REDACTED Premier Inn PR1 2AB 17.06.2022-20.06.2022,Accomodation,124250,COMU-Communities,JBC-Homelessness
South Ribble Council,http://Statistics.Data.gov.uk\Doc\Local Authority\30UN,27/06/2022,59.50,Premier Inn Wigan Centre,NAME REDACTED Premier Inn Wigan 27/06/2022-28/06/2022,Accomodation,124050,COMU-Communities,JBC-Homelessness
South Ribble Council,http://Statistics.Data.gov.uk\Doc\Local Authority\30UN,01/04/2022,175.00,Premier Inn PR1 2AB,NAME REDACTED 3 nights Premier Inn PR1 2AB 01/04/2022 - 04/04/2022,Accomodation,124250,COMU-Communities,JBC-Homelessness
South Ribble Council,http://Statistics.Data.gov.uk\Doc\Local Authority\30UN,01/04/2022,175.00,Premier Inn PR1 2AB,NAME REDACTED 3 nights at Premier Inn PR1 2AB 01/04/2022 - 04/04/2022,Accomodation,124050,COMU-Communities,JBC-Homelessness
South Ribble Council,http://Statistics.Data.gov.uk\Doc\Local Authority\30UN,05/04/2022,15.00,Avacab,NAME REDACTED taxi to new tenancy leyland 05/04/2022,Travel,124250,COMU-Communities,JBC-Homelessness
South Ribble Council,http://Statistics.Data.gov.uk\Doc\Local Authority\30UN,05/04/2022,248.40,Marriott Hotel Broughton PR3 5JB,NAMES REDACTED x1 night fixed price 05/04/2022 - 06/04/2022 Marriott Hotel Broughton PR3 5JB,Accomodation,124050,COMU-Communities,JBC-Homelessness
South Ribble Council,http://Statistics.Data.gov.uk\Doc\Local Authority\30UN,07/04/2022,47.00,Premier Inn BL6 6LB,NAME REDACTED new placement at Premier Inn Bolton Arena BL6 6LB (1 night),Accomodation,124250,COMU-Communities,JBC-Homelessness
South Ribble Council,http://Statistics.Data.gov.uk\Doc\Local Authority\30UN,08/04/2022,208.50,Premier Inn BL6 6LB,NAME REDACTED 3 nights at Premier Inn Bolton Arena BL6 6LB,Accomodation,124250,COMU-Communities,JBC-Homelessness
South Ribble Council,http://Statistics.Data.gov.uk\Doc\Local Authority\30UN,07/05/2022,208.85,Ibis Hotel,NAME REDACTED Ibis 07/05/2022-10/05/2022,Accomodation,124250,COMU-Communities,JBC-Homelessness
South Ribble Council,http://Statistics.Data.gov.uk\Doc\Local Authority\30UN,10/05/2022,76.00,Premier Inn PR1 2AB,NAME REDACTED 1 night Premier Inn PR1 2AB 10.05.2022-11.05.2022,Accomodation,124250,COMU-Communities,JBC-Homelessness
South Ribble Council,http://Statistics.Data.gov.uk\Doc\Local Authority\30UN,12/05/2022,71.37,Travelodge PR1 6NX,NAME REDACTED 1 night Travelodge PR1 6NX 12.05.2022-13.05.2022,Accomodation,124250,COMU-Communities,JBC-Homelessness
South Ribble Council,http://Statistics.Data.gov.uk\Doc\Local Authority\30UN,13/05/2022,158.00,Premier Inn Bolton Arena,NAME REDACTED 3 nights Premier Inn Bolton Arena 13.05.2022-16.05.2022,Accomodation,124250,COMU-Communities,JBC-Homelessness
South Ribble Council,http://Statistics.Data.gov.uk\Doc\Local Authority\30UN,18/05/2022,87.00,Holiday Inn Express PR5 8AA,NAME REDACTED 2nd night HIEX PR5 8AA 18/05/2022-19/05/2022 (1st night paid on NAME REDACTED card),Accomodation,124250,COMU-Communities,JBC-Homelessness
South Ribble Council,http://Statistics.Data.gov.uk\Doc\Local Authority\30UN,23/05/2022,70.00,Premier Inn PR5 6BZ,NAME REDACTED 1 night Premier Inn PR5 6BZ 23/05/2022-24/05/2022,Accomodation,124250,COMU-Communities,JBC-Homelessness
South Ribble Council,http://Statistics.Data.gov.uk\Doc\Local Authority\30UN,23/05/2022,70.00,Premier Inn PR5 6BZ,NAMES REDACTED 1 night Premier Inn PR5 6BZ 23/05/2022-24/05/2022,Accomodation,124250,COMU-Communities,JBC-Homelessness
South Ribble Council,http://Statistics.Data.gov.uk\Doc\Local Authority\30UN,26/05/2022,84.00,HIEX PR5 8AA,NAME REDACTED 1 night HIEX PR5 8AA 26.05.2022-27.05.2022,Accomodation,124250,COMU-Communities,JBC-Homelessness
South Ribble Council,http://Statistics.Data.gov.uk\Doc\Local Authority\30UN,26/05/2022,84.00,HIEX PR5 8AA,NAME REDACTED 2nd night HIEX PR5 8AA 26/05/2022 Placement 25/05/2022-27/05/2022 other nights paid on other card.,Accomodation,124250,COMU-Communities,JBC-Homelessness
South Ribble Council,http://Statistics.Data.gov.uk\Doc\Local Authority\30UN,27/05/2022,72.75,HIEX Wigan,NAME REDACTED 1st night HIEX Wigan 27/05/2022. Placement cancelled charged for 1st night only.,Accomodation,124250,COMU-Communities,JBC-Homelessness
South Ribble Council,http://Statistics.Data.gov.uk\Doc\Local Authority\30UN,28/05/2022,3.00,HIEX Wigan,NAME REDACTED HIEX Wigan 27/05/2022-28/05/2022 Placement cancelled,Accomodation,124250,COMU-Communities,JBC-Homelessness
South Ribble Council,http://Statistics.Data.gov.uk\Doc\Local Authority\30UN,08/06/2022,86.50,Premier Inn BB PR5 6BZ,NAME REDACTED Premier Inn PR5 6BZ 08/06/2022-09/06/2022,Accomodation,124250,COMU-Communities,JBC-Homelessness
South Ribble Council,http://Statistics.Data.gov.uk\Doc\Local Authority\30UN,24/06/2022,200.00,Premier Inn Wigan,NAME REDACTED Premier Inn Wigan 24/06/2022-27/06/2022,Accomodation,124050,COMU-Communities,JBC-Homelessness
South Ribble Council,http://Statistics.Data.gov.uk\Doc\Local Authority\30UN,24/06/2022,283.24,HIEX PR5 8AA,NAME REDACTED HIEX PR5 8AA 24/06/2022-27/06/2022,Accomodation,124250,COMU-Communities,JBC-Homelessness
South Ribble Council,http://Statistics.Data.gov.uk\Doc\Local Authority\30UN,24/06/2022,283.24,HIEX PR5 8AA,NAME REDACTED HIEX PR5 8AA 24/06/2022-27/06/2022,Accomodation,124050,COMU-Communities,JBC-Homelessness
South Ribble Council,http://Statistics.Data.gov.uk\Doc\Local Authority\30UN,27/06/2022,81.00,HIEX PR5 8AA,NAME REDACTED HIEX PR5 8AA 27.06.2022-28.06.2022,Accomodation,124050,COMU-Communities,JBC-Homelessness
South Ribble Council,http://Statistics.Data.gov.uk\Doc\Local Authority\30UN,27/06/2022,176.00,HIEX PR5 8AA,NAME REDACTED HIEX PR5 8AA 27.06.2022-29.06.2022,Accomodation,124250,COMU-Communities,JBC-Homelessness
South Ribble Council,http://Statistics.Data.gov.uk\Doc\Local Authority\30UN,28/06/2022,84.50,Premier Inn Preston South PR5 6BZ,NAME REDACTED 1 night Premier Inn Preston South PR5 6BZ 28/06/2022-29/06/2022,Accomodation,124050,COMU-Communities,JBC-Homelessness
South Ribble Council,http://Statistics.Data.gov.uk\Doc\Local Authority\30UN,28/06/2022,188.00,Premier Inn Preston South PR5 6BZ,NAME REDACTED 2 nights Premier Inn Preston South PR5 6BZ 28/06/2022-30/06/2022 94 p/n,Accomodation,124050,COMU-Communities,JBC-Homelessness
South Ribble Council,http://Statistics.Data.gov.uk\Doc\Local Authority\30UN,30/06/2022,86.33,Holiday Inn Express PR5 8AA,NAME REDACTED Holiday Inn Express PR5 8AA 1 night 30/06/2022-01/07/2022,Accomodation,124050,COMU-Communities,JBC-Homelessness
South Ribble Council,http://Statistics.Data.gov.uk\Doc\Local Authority\30UN,14/04/2022,377.00,Premier Inn PR5 6BZ,NAME REDACTED 5 nights at Premier Inn PR5 6BZ 14/05/2022 - 19/05/2022 (priority),Accomodation,124050,COMU-Communities,JBC-Homelessness
South Ribble Council,http://Statistics.Data.gov.uk\Doc\Local Authority\30UN,26/04/2022,90.75,Travelodge PR1 6NX,NAME REDACTED 1 night Travelodge Pr1 6NX 26-27/04/2022,Accomodation,124250,COMU-Communities,JBC-Homelessness
South Ribble Council,http://Statistics.Data.gov.uk\Doc\Local Authority\30UN,28/04/2022,446.63,Travelodge PR1 5NX,NAMES REDACTED 6 nights at Travelodge PR1 5NX 28/04/2022 - 04/05/2022 prior to sign up (priority),Accomodation,124050,COMU-Communities,JBC-Homelessness
South Ribble Council,http://Statistics.Data.gov.uk\Doc\Local Authority\30UN,04/05/2022,12.00,Millers Taxis,NAME REDACTED Millers taxi fare 04.05.2022,Travel,124250,COMU-Communities,JBC-Homelessness
South Ribble Council,http://Statistics.Data.gov.uk\Doc\Local Authority\30UN,04/05/2022,63.99,Ibis PR3 5JE,NAME REDACTED 1 night Ibis PR3 5JE 04/05/2022-05/05/2022,Accomodation,124250,COMU-Communities,JBC-Homelessness
South Ribble Council,http://Statistics.Data.gov.uk\Doc\Local Authority\30UN,11/05/2022,78.51,Travelodge PR1 6NX,NAME REDACTED 1 night Travelodge PR1 6NX,Accomodation,124250,COMU-Communities,JBC-Homelessness
South Ribble Council,http://Statistics.Data.gov.uk\Doc\Local Authority\30UN,16/05/2022,80.55,Travelodge PR1 6NX,NAME REDACTED 1 night Travelodge PR1 6NX 16.05.2022-17.05.2022,Accomodation,124250,COMU-Communities,JBC-Homelessness
South Ribble Council,http://Statistics.Data.gov.uk\Doc\Local Authority\30UN,17/05/2022,87.00,Holiday Inn Express PR5 8AA,NAME REDACTED 1st night HIEX PR5 8AA 17/05/2022-18/05/2022 (2nd night paid on NAME REDACTED card),Accomodation,124250,COMU-Communities,JBC-Homelessness
South Ribble Council,http://Statistics.Data.gov.uk\Doc\Local Authority\30UN,20/05/2022,207.00,HIEX PR5 8AA,NAME REDACTED HIEX 3 nights 20-23/05/2022,Accomodation,124250,COMU-Communities,JBC-Homelessness
South Ribble Council,http://Statistics.Data.gov.uk\Doc\Local Authority\30UN,10/06/2022,55.00,Premier Inn BB PR5 6BZ,NAME REDACTED Premier Inn PR5 6BZ 12.06.2022-13.06.2022,Accomodation,124250,COMU-Communities,JBC-Homelessness
South Ribble Council,http://Statistics.Data.gov.uk\Doc\Local Authority\30UN,10/06/2022,81.00,Premier Inn BB PR5 6BZ,NAME REDACTED Premier Inn PR5 6BZ 10.06.2022-11.06.2022,Accomodation,124250,COMU-Communities,JBC-Homelessness
South Ribble Council,http://Statistics.Data.gov.uk\Doc\Local Authority\30UN,10/06/2022,131.00,Premier Inn Preston South PR5 6BZ,NAME REDACTED 1 night Premier Inn Preston South PR5 6BZ 11/06/2022-12/06/2022,Accomodation,124250,COMU-Communities,JBC-Homelessness
South Ribble Council,http://Statistics.Data.gov.uk\Doc\Local Authority\30UN,10/06/2022,222.73,Holiday Inn PR1 3AU,NAME REDACTED Holiday Inn PR1 3AU 10.06.2022-12.06.2022,Accomodation,124050,COMU-Communities,JBC-Homelessness
South Ribble Council,http://Statistics.Data.gov.uk\Doc\Local Authority\30UN,16/06/2022,75.00,Premier Inn PR1 2AB,NAME REDACTED Premier Inn PR1 2AB 16.06.2022-17.06.2022,Accomodation,124250,COMU-Communities,JBC-Homelessness
South Ribble Council,http://Statistics.Data.gov.uk\Doc\Local Authority\30UN,22/06/2022,159.00,Premier Inn PR5 6BZ,NAME REDACTED Premier Inn PR5 6BZ 22.06.2022.-24.06.2022,Accomodation,124250,COMU-Communities,JBC-Homelessness
South Ribble Council,http://Statistics.Data.gov.uk\Doc\Local Authority\30UN,29/06/2022,185.00,Holiday Inn Express PR5 8AA,NAME REDACTED Holiday Inn Express PR5 8AA 29/06/2022-01/07/2022,Accomodation,124250,COMU-Communities,JBC-Homelessness
South Ribble Council,http://Statistics.Data.gov.uk\Doc\Local Authority\30UN,19/05/2022,268.00,HMCTS PENNINE,MAY 2022 COURT FEES,Court Fees,161200,Revenues Plus,Revenues Plus
South Ribble Council,http://Statistics.Data.gov.uk\Doc\Local Authority\30UN,08/06/2022,496.00,HMCTS PENNINE,JUNE 2022 COURT FEES,Court Fees,161200,Revenues Plus,Revenues Plus
South Ribble Council,http://Statistics.Data.gov.uk\Doc\Local Authority\30UN,28/04/2022,167.50,DVLA,Road Tax Apr 2022 - VIN REDACTED,Online Purchase,172400,CDIG-Customer and Digital,JCE-Transport
South Ribble Council,http://Statistics.Data.gov.uk\Doc\Local Authority\30UN,28/04/2022,292.50,DVLA,Road Tax Apr 2022 - VIN REDACTED,Online Purchase,172400,CDIG-Customer and Digital,JCE-Transport
South Ribble Council,http://Statistics.Data.gov.uk\Doc\Local Authority\30UN,28/04/2022,292.50,DVLA,Road Tax Apr 2022 - VIN REDACTED,Online Purchase,172100,CDIG-Customer and Digital,JCE-Transport
South Ribble Council,http://Statistics.Data.gov.uk\Doc\Local Authority\30UN,28/04/2022,292.50,DVLA,Road Tax Apr 2022 - VIN REDACTED,Online Purchase,172300,CDIG-Customer and Digital,JCE-Transport
South Ribble Council,http://Statistics.Data.gov.uk\Doc\Local Authority\30UN,28/04/2022,292.50,DVLA,Road Tax Apr 2022 - VIN REDACTED,Online Purchase,172300,CDIG-Customer and Digital,JCE-Transport
South Ribble Council,http://Statistics.Data.gov.uk\Doc\Local Authority\30UN,28/04/2022,302.50,DVLA,Road Tax Apr 2022 - VIN REDACTED,Online Purchase,172830,CDIG-Customer and Digital,JCE-Transport
South Ribble Council,http://Statistics.Data.gov.uk\Doc\Local Authority\30UN,28/04/2022,302.50,DVLA,Road Tax Apr 2022 - VIN REDACTED,Online Purchase,172840,CDIG-Customer and Digital,JCE-Transport
South Ribble Council,http://Statistics.Data.gov.uk\Doc\Local Authority\30UN,24/05/2022,302.50,DVLA,VIN REDACTED VEHICLE TAX,Road Tax,172840,CDIG-Customer and Digital,JCE-Transport
South Ribble Council,http://Statistics.Data.gov.uk\Doc\Local Authority\30UN,24/05/2022,302.50,DVLA,VIN REDACTED VEHICLE TAX,Road Tax,172840,CDIG-Customer and Digital,JCE-Transport
South Ribble Council,http://Statistics.Data.gov.uk\Doc\Local Authority\30UN,24/04/2022,292.50,DVLA,Road Tax Apr 2022 - VIN REDACTED,Online Purchase,172400,CDIG-Customer and Digital,JCE-Transport
South Ribble Council,http://Statistics.Data.gov.uk\Doc\Local Authority\30UN,24/04/2022,292.50,DVLA,Road Tax Apr 2022 - VIN REDACTED,Online Purchase,172400,CDIG-Customer and Digital,JCE-Transport
South Ribble Council,http://Statistics.Data.gov.uk\Doc\Local Authority\30UN,24/04/2022,292.50,DVLA,Road Tax Apr 2022 - VIN REDACTED,Online Purchase,172400,CDIG-Customer and Digital,JCE-Transport
South Ribble Council,http://Statistics.Data.gov.uk\Doc\Local Authority\30UN,24/04/2022,302.50,DVLA,Road Tax Apr 2022 - VIN REDACTED,Online Purchase,172830,CDIG-Customer and Digital,JCE-Transport
South Ribble Council,http://Statistics.Data.gov.uk\Doc\Local Authority\30UN,04/05/2022,102.50,DVSA,MOT slots x 50,Online Purchase,172600,CDIG-Customer and Digital,JCE-Transport
South Ribble Council,http://Statistics.Data.gov.uk\Doc\Local Authority\30UN,12/05/2022,64.00,DVSA,Company digital tacho cards x 2,Online Purchase,172600,CDIG-Customer and Digital,JCE-Transport
South Ribble Council,http://Statistics.Data.gov.uk\Doc\Local Authority\30UN,07/06/2022,502.00,NEC,NEC Engineering and Construction Contract (NAME REDACTED),Online Purchase,174300,CDIG-Customer and Digital,JCE-Transport
South Ribble Council,http://Statistics.Data.gov.uk\Doc\Local Authority\30UN,22/06/2022,292.50,DVLA,Road Tax June 2022 - VIN REDACTED,Online Purchase,171200,CDIG-Customer and Digital,JCE-Transport
South Ribble Council,http://Statistics.Data.gov.uk\Doc\Local Authority\30UN,22/06/2022,292.50,DVLA,Road Tax June 2022 - VIN REDACTED,Online Purchase,171200,CDIG-Customer and Digital,JCE-Transport
South Ribble Council,http://Statistics.Data.gov.uk\Doc\Local Authority\30UN,22/06/2022,292.50,DVLA,Road Tax June 2022 - VIN REDACTED,Online Purchase,171200,CDIG-Customer and Digital,JCE-Transport
South Ribble Council,http://Statistics.Data.gov.uk\Doc\Local Authority\30UN,22/06/2022,292.50,DVLA,Road Tax June 2022 - VIN REDACTED,Online Purchase,171200,CDIG-Customer and Digital,JCE-Transport
South Ribble Council,http://Statistics.Data.gov.uk\Doc\Local Authority\30UN,22/06/2022,302.50,DVLA,Road Tax June 2022 - VIN REDACTED,Online Purchase,172840,CDIG-Customer and Digital,JCE-Transport
South Ribble Council,http://Statistics.Data.gov.uk\Doc\Local Authority\30UN,22/06/2022,302.50,DVLA,Road Tax June 2022 - VIN REDACTED,Online Purchase,172840,CDIG-Customer and Digital,JCE-Transport
South Ribble Council,http://Statistics.Data.gov.uk\Doc\Local Authority\30UN,22/04/2022,355.00,Preston County Council HMCTS,Court Costs,Court Fees,142100,GOVE-Governance,JDE-Legal
South Ribble Council,http://Statistics.Data.gov.uk\Doc\Local Authority\30UN,22/04/2022,355.00,Preston County Council HMCTS,Court Costs,Court Fees,142100,GOVE-Governance,JDE-Legal
South Ribble Council,http://Statistics.Data.gov.uk\Doc\Local Authority\30UN,17/05/2022,226.00,HMCTS,Court hearing cost re travellers on SRBC land,Court Fees,142100,GOVE-Governance,JDE-Legal
South Ribble Council,http://Statistics.Data.gov.uk\Doc\Local Authority\30UN,28/06/2022,226.00,HMCTS,Court fee for traveller hearing,Court Fees,142100,GOVE-Governance,JDE-Legal
South Ribble Council,http://Statistics.Data.gov.uk\Doc\Local Authority\30UN,12/04/2022,20.99,EASYJET,FLIGHTS FOR NAMES REDACTED,Travel,143750,CDIG-Customer and Digital,JCB-Revenue and Benefits
South Ribble Council,http://Statistics.Data.gov.uk\Doc\Local Authority\30UN,12/04/2022,21.60,LUFTHANSA,FLIGHTS,Online Purchase,143750,CDIG-Customer and Digital,JCB-Revenue and Benefits
South Ribble Council,http://Statistics.Data.gov.uk\Doc\Local Authority\30UN,12/04/2022,21.60,LUFTHANSA,FLIGHTS,Online Purchase,143750,CDIG-Customer and Digital,JCB-Revenue and Benefits
South Ribble Council,http://Statistics.Data.gov.uk\Doc\Local Authority\30UN,12/04/2022,21.60,LUFTHANSA,FLIGHTS,Online Purchase,143750,CDIG-Customer and Digital,JCB-Revenue and Benefits
South Ribble Council,http://Statistics.Data.gov.uk\Doc\Local Authority\30UN,12/04/2022,21.60,LUFTHANSA,FLIGHTS,Online Purchase,143750,CDIG-Customer and Digital,JCB-Revenue and Benefits
South Ribble Council,http://Statistics.Data.gov.uk\Doc\Local Authority\30UN,12/04/2022,35.99,EASYJET,FLIGHTS FOR NAMES REDACTED,Travel,143750,CDIG-Customer and Digital,JCB-Revenue and Benefits
South Ribble Council,http://Statistics.Data.gov.uk\Doc\Local Authority\30UN,09/05/2022,7.50,FREETHOUGHT,DOMAIN,Online Purchase,133000,CDIG-Customer and Digital,JCB-Revenue and Benefits
South Ribble Council,http://Statistics.Data.gov.uk\Doc\Local Authority\30UN,25/05/2022,20.00,LUFTHANSA,FLIGHTS,Travel,143750,CDIG-Customer and Digital,JCB-Revenue and Benefits
South Ribble Council,http://Statistics.Data.gov.uk\Doc\Local Authority\30UN,25/05/2022,20.00,LUFTHANSA,FLIGHTS,Travel,143750,CDIG-Customer and Digital,JCB-Revenue and Benefits
South Ribble Council,http://Statistics.Data.gov.uk\Doc\Local Authority\30UN,25/05/2022,20.00,LUFTHANSA,FLIGHTS,Travel,143750,CDIG-Customer and Digital,JCB-Revenue and Benefits
South Ribble Council,http://Statistics.Data.gov.uk\Doc\Local Authority\30UN,25/05/2022,20.00,LUFTHANSA,FLIGHTS,Travel,143750,CDIG-Customer and Digital,JCB-Revenue and Benefits
South Ribble Council,http://Statistics.Data.gov.uk\Doc\Local Authority\30UN,25/05/2022,22.00,LUFTHANSA,FLIGHTS,Travel,143750,CDIG-Customer and Digital,JCB-Revenue and Benefits
South Ribble Council,http://Statistics.Data.gov.uk\Doc\Local Authority\30UN,25/05/2022,22.00,LUFTHANSA,FLIGHTS,Travel,143750,CDIG-Customer and Digital,JCB-Revenue and Benefits
South Ribble Council,http://Statistics.Data.gov.uk\Doc\Local Authority\30UN,25/05/2022,154.00,LUFTHANSA,FLIGHTS,Travel,143750,CDIG-Customer and Digital,JCB-Revenue and Benefits
South Ribble Council,http://Statistics.Data.gov.uk\Doc\Local Authority\30UN,25/05/2022,154.00,LUFTHANSA,FLIGHTS,Travel,143750,CDIG-Customer and Digital,JCB-Revenue and Benefits
South Ribble Council,http://Statistics.Data.gov.uk\Doc\Local Authority\30UN,04/04/2022,30.50,Morrisons,Items for the Leyland Hotel residents,Store Purchase,114800,COMU-Communities,JBA-Community Involvement
South Ribble Council,http://Statistics.Data.gov.uk\Doc\Local Authority\30UN,04/04/2022,82.16,Lidl,Items for the Leyland Hotel residents,Store Purchase,114800,COMU-Communities,JBA-Community Involvement
South Ribble Council,http://Statistics.Data.gov.uk\Doc\Local Authority\30UN,04/04/2022,95.86,The Range,Items for Thank You event,Store Purchase,114800,COMU-Communities,JBA-Community Involvement
South Ribble Council,http://Statistics.Data.gov.uk\Doc\Local Authority\30UN,04/04/2022,103.71,Poundstretcher,Items for the Leyland Hotel residents,Store Purchase,114800,COMU-Communities,JBA-Community Involvement
South Ribble Council,http://Statistics.Data.gov.uk\Doc\Local Authority\30UN,04/04/2022,177.75,Tesco,Items for the Leyland Hotel residents,Store Purchase,114800,COMU-Communities,JBA-Community Involvement
South Ribble Council,http://Statistics.Data.gov.uk\Doc\Local Authority\30UN,05/04/2022,14.90,Tesco,Items for Leyland Hotel residents,Store Purchase,114800,COMU-Communities,JBA-Community Involvement
South Ribble Council,http://Statistics.Data.gov.uk\Doc\Local Authority\30UN,05/04/2022,16.98,The Range,Items for Thank You event,Store Purchase,114800,COMU-Communities,JBA-Community Involvement
South Ribble Council,http://Statistics.Data.gov.uk\Doc\Local Authority\30UN,05/04/2022,40.00,Forget Me Knot,Items for Thank You event,Store Purchase,114800,COMU-Communities,JBA-Community Involvement
South Ribble Council,http://Statistics.Data.gov.uk\Doc\Local Authority\30UN,05/04/2022,60.70,Tesco,Items for food parcels for Hub,Store Purchase,101019,COMU-Communities,JBA-Community Involvement
South Ribble Council,http://Statistics.Data.gov.uk\Doc\Local Authority\30UN,06/04/2022,2.37,Home Bargains,Items for Leyland Hotel residents,Store Purchase,114800,COMU-Communities,JBA-Community Involvement
South Ribble Council,http://Statistics.Data.gov.uk\Doc\Local Authority\30UN,06/04/2022,39.20,Tesco,Items for Leyland Hotel residents,Store Purchase,114800,COMU-Communities,JBA-Community Involvement
South Ribble Council,http://Statistics.Data.gov.uk\Doc\Local Authority\30UN,06/04/2022,100.00,Matalan,Items for Leyland Hotel residents,Store Purchase,101023,COMU-Communities,JBA-Community Involvement
South Ribble Council,http://Statistics.Data.gov.uk\Doc\Local Authority\30UN,07/04/2022,1.80,Tesco,Items for food parcels for Hub,Store Purchase,101019,COMU-Communities,JBA-Community Involvement
South Ribble Council,http://Statistics.Data.gov.uk\Doc\Local Authority\30UN,07/04/2022,6.00,Tesco,Items for Leyland Hotel residents,Store Purchase,114800,COMU-Communities,JBA-Community Involvement
South Ribble Council,http://Statistics.Data.gov.uk\Doc\Local Authority\30UN,07/04/2022,16.05,Tesco,Items for The Leyland Hotel residents,Store Purchase,114800,COMU-Communities,JBA-Community Involvement
South Ribble Council,http://Statistics.Data.gov.uk\Doc\Local Authority\30UN,08/04/2022,7.00,Tesco,Items for food parcels,Store Purchase,101019,COMU-Communities,JBA-Community Involvement
South Ribble Council,http://Statistics.Data.gov.uk\Doc\Local Authority\30UN,08/04/2022,19.97,Tesco,Items for food parcels for Hub,Store Purchase,101019,COMU-Communities,JBA-Community Involvement
South Ribble Council,http://Statistics.Data.gov.uk\Doc\Local Authority\30UN,08/04/2022,30.00,Whittakers Butcher,Items for food parcels for Hub,Store Purchase,101019,COMU-Communities,JBA-Community Involvement
South Ribble Council,http://Statistics.Data.gov.uk\Doc\Local Authority\30UN,11/04/2022,4.75,Tesco,Items for food parcels for Hub,Store Purchase,101019,COMU-Communities,JBA-Community Involvement
South Ribble Council,http://Statistics.Data.gov.uk\Doc\Local Authority\30UN,11/04/2022,45.00,New Days Homes and More,Item for Leyland Hotel resident,Store Purchase,114800,COMU-Communities,JBA-Community Involvement
South Ribble Council,http://Statistics.Data.gov.uk\Doc\Local Authority\30UN,11/04/2022,174.50,Tesco,Items for Leyland Hotel residents,Store Purchase,114800,COMU-Communities,JBA-Community Involvement
South Ribble Council,http://Statistics.Data.gov.uk\Doc\Local Authority\30UN,12/04/2022,194.73,Tesco,Items for food parcels for Hub,Store Purchase,101019,COMU-Communities,JBA-Community Involvement
South Ribble Council,http://Statistics.Data.gov.uk\Doc\Local Authority\30UN,13/04/2022,16.19,Tesco,Penwortham Community Hub project,Store Purchase,114804,COMU-Communities,JBA-Community Involvement
South Ribble Council,http://Statistics.Data.gov.uk\Doc\Local Authority\30UN,14/04/2022,6.26,Viking Flint Bishop,Items for Active Health work,Online Purchase,113100,COMU-Communities,JBA-Community Involvement
South Ribble Council,http://Statistics.Data.gov.uk\Doc\Local Authority\30UN,14/04/2022,300.00,Tesco,Items for Leyland Hotel residents,Store Purchase,114800,COMU-Communities,JBA-Community Involvement
South Ribble Council,http://Statistics.Data.gov.uk\Doc\Local Authority\30UN,14/04/2022,338.33,Viking,Items for community work,Online Purchase,114850,COMU-Communities,JBA-Community Involvement
South Ribble Council,http://Statistics.Data.gov.uk\Doc\Local Authority\30UN,19/04/2022,1.80,Tesco,Items for food parcels for Hub,Store Purchase,101019,COMU-Communities,JBA-Community Involvement
South Ribble Council,http://Statistics.Data.gov.uk\Doc\Local Authority\30UN,19/04/2022,10.00,AA Wristbands,Penwortham Live items delivery,Store Purchase,114800,COMU-Communities,JBA-Community Involvement
South Ribble Council,http://Statistics.Data.gov.uk\Doc\Local Authority\30UN,19/04/2022,43.60,Amazon,Games for Penwortham Project,Online Purchase,114804,COMU-Communities,JBA-Community Involvement
South Ribble Council,http://Statistics.Data.gov.uk\Doc\Local Authority\30UN,19/04/2022,81.70,AA Wristbands,Penwortham Live items,Online Purchase,114800,COMU-Communities,JBA-Community Involvement
South Ribble Council,http://Statistics.Data.gov.uk\Doc\Local Authority\30UN,20/04/2022,1.00,Matalan,Items for Leyland Hotel residents,Store Purchase,114800,COMU-Communities,JBA-Community Involvement
South Ribble Council,http://Statistics.Data.gov.uk\Doc\Local Authority\30UN,20/04/2022,1.50,Tesco,Items for food parcels,Store Purchase,101019,COMU-Communities,JBA-Community Involvement
South Ribble Council,http://Statistics.Data.gov.uk\Doc\Local Authority\30UN,20/04/2022,10.80,Berrys,Items for event on 4th May,Store Purchase,114800,COMU-Communities,JBA-Community Involvement
South Ribble Council,http://Statistics.Data.gov.uk\Doc\Local Authority\30UN,20/04/2022,23.76,Tesco,Items for food parcels for Hub,Store Purchase,101019,COMU-Communities,JBA-Community Involvement
South Ribble Council,http://Statistics.Data.gov.uk\Doc\Local Authority\30UN,20/04/2022,38.82,The Range,Items for event on 4 May,Store Purchase,114800,COMU-Communities,JBA-Community Involvement
South Ribble Council,http://Statistics.Data.gov.uk\Doc\Local Authority\30UN,20/04/2022,182.50,Matalan,Items for Leyland Hotel residents,Store Purchase,114800,COMU-Communities,JBA-Community Involvement
South Ribble Council,http://Statistics.Data.gov.uk\Doc\Local Authority\30UN,20/04/2022,265.50,Matalan,Items for Leyland Hotel residents,Store Purchase,114800,COMU-Communities,JBA-Community Involvement
South Ribble Council,http://Statistics.Data.gov.uk\Doc\Local Authority\30UN,21/04/2022,6.74,Tesco,Items for Penwortham of games,Store Purchase,114804,COMU-Communities,JBA-Community Involvement
South Ribble Council,http://Statistics.Data.gov.uk\Doc\Local Authority\30UN,21/04/2022,11.40,Towngate Key Cutting,Items for REDACTED,Store Purchase,114801,COMU-Communities,JBA-Community Involvement
South Ribble Council,http://Statistics.Data.gov.uk\Doc\Local Authority\30UN,25/04/2022,11.00,Tesco,Items for food parcels for Hub,Store Purchase,101019,COMU-Communities,JBA-Community Involvement
South Ribble Council,http://Statistics.Data.gov.uk\Doc\Local Authority\30UN,25/04/2022,49.25,Facebook,Campaigns,Online Purchase,114850,COMU-Communities,JBA-Community Involvement
South Ribble Council,http://Statistics.Data.gov.uk\Doc\Local Authority\30UN,25/04/2022,142.51,Facebook,Campaigns,Online Purchase,115600,COMU-Communities,JBA-Community Involvement
South Ribble Council,http://Statistics.Data.gov.uk\Doc\Local Authority\30UN,26/04/2022,14.48,Tesco,Items for food parcels for Hub,Store Purchase,101019,COMU-Communities,JBA-Community Involvement
South Ribble Council,http://Statistics.Data.gov.uk\Doc\Local Authority\30UN,26/04/2022,49.78,Morrisons,Items for meeting/event with St Catherine`s Hospice,Store Purchase,114800,COMU-Communities,JBA-Community Involvement
South Ribble Council,http://Statistics.Data.gov.uk\Doc\Local Authority\30UN,26/04/2022,270.00,The Engraving Shop,Brass plaques for benches,Online Purchase,114803,COMU-Communities,JBA-Community Involvement
South Ribble Council,http://Statistics.Data.gov.uk\Doc\Local Authority\30UN,28/04/2022,5.98,The Range,Items for Leyland Hotel residents,Store Purchase,114800,COMU-Communities,JBA-Community Involvement
South Ribble Council,http://Statistics.Data.gov.uk\Doc\Local Authority\30UN,28/04/2022,23.92,Home Bargains,Items for Leyland Hotel residents,Store Purchase,114800,COMU-Communities,JBA-Community Involvement
South Ribble Council,http://Statistics.Data.gov.uk\Doc\Local Authority\30UN,28/04/2022,34.30,Tesco,Items for Leyland Hotel residents,Store Purchase,114800,COMU-Communities,JBA-Community Involvement
South Ribble Council,http://Statistics.Data.gov.uk\Doc\Local Authority\30UN,28/04/2022,44.50,Tesco,Items for residents of Leyland Hotel,Store Purchase,114800,COMU-Communities,JBA-Community Involvement
South Ribble Council,http://Statistics.Data.gov.uk\Doc\Local Authority\30UN,28/04/2022,60.76,Tesco,Items for food parcels for the hub,Store Purchase,101019,COMU-Communities,JBA-Community Involvement
South Ribble Council,http://Statistics.Data.gov.uk\Doc\Local Authority\30UN,28/04/2022,190.00,Post Office,Items for residents of Leyland Hotel,Store Purchase,114800,COMU-Communities,JBA-Community Involvement
South Ribble Council,http://Statistics.Data.gov.uk\Doc\Local Authority\30UN,29/04/2022,1.40,Tesco,Items for Leyland Hotel residents,Store Purchase,114800,COMU-Communities,JBA-Community Involvement
South Ribble Council,http://Statistics.Data.gov.uk\Doc\Local Authority\30UN,29/04/2022,6.45,Tesco,Items for Leyland Hotel residents,Store Purchase,114800,COMU-Communities,JBA-Community Involvement
South Ribble Council,http://Statistics.Data.gov.uk\Doc\Local Authority\30UN,29/04/2022,111.84,Tesco,Items for food parcels for the Hub,Store Purchase,101019,COMU-Communities,JBA-Community Involvement
South Ribble Council,http://Statistics.Data.gov.uk\Doc\Local Authority\30UN,03/05/2022,22.49,Tesco,Items for food parcels for the hub,Store Purchase,101019,COMU-Communities,JBA-Community Involvement
South Ribble Council,http://Statistics.Data.gov.uk\Doc\Local Authority\30UN,03/05/2022,31.00,Tesco,Items for Leyland hotel residents,Store Purchase,114800,COMU-Communities,JBA-Community Involvement
South Ribble Council,http://Statistics.Data.gov.uk\Doc\Local Authority\30UN,04/05/2022,50.50,Tesco,Items for Leyland Hotel residents,Store Purchase,114800,COMU-Communities,JBA-Community Involvement
South Ribble Council,http://Statistics.Data.gov.uk\Doc\Local Authority\30UN,04/05/2022,62.25,Tesco,Household Goods,Store Purchase,114800,COMU-Communities,JBA-Community Involvement
South Ribble Council,http://Statistics.Data.gov.uk\Doc\Local Authority\30UN,04/05/2022,77.50,ARGOS,Household Goods,Online Purchase,114800,COMU-Communities,JBA-Community Involvement
South Ribble Council,http://Statistics.Data.gov.uk\Doc\Local Authority\30UN,04/05/2022,208.20,MandJ Distributors,M&J bike items order,Online Purchase,113100,COMU-Communities,JBA-Community Involvement
South Ribble Council,http://Statistics.Data.gov.uk\Doc\Local Authority\30UN,05/05/2022,8.00,Tesco,School Uniform Bank,Store Purchase,114800,COMU-Communities,JBA-Community Involvement
South Ribble Council,http://Statistics.Data.gov.uk\Doc\Local Authority\30UN,10/05/2022,2.70,Tesco,Items for food parcels,Store Purchase,101019,COMU-Communities,JBA-Community Involvement
South Ribble Council,http://Statistics.Data.gov.uk\Doc\Local Authority\30UN,11/05/2022,8.00,Towngate,4 noticeboard keys for Leyland and Farington,Store Purchase,114800,COMU-Communities,JBA-Community Involvement
South Ribble Council,http://Statistics.Data.gov.uk\Doc\Local Authority\30UN,11/05/2022,20.00,Towngate Keys and Shoe Repair,Key cutting,Store Purchase,114800,COMU-Communities,JBA-Community Involvement
South Ribble Council,http://Statistics.Data.gov.uk\Doc\Local Authority\30UN,12/05/2022,2.39,Co op,Items for food parcels for Hub,Store Purchase,101019,COMU-Communities,JBA-Community Involvement
South Ribble Council,http://Statistics.Data.gov.uk\Doc\Local Authority\30UN,13/05/2022,4.15,Spar,Items for Penwortham Live,Store Purchase,114800,COMU-Communities,JBA-Community Involvement
South Ribble Council,http://Statistics.Data.gov.uk\Doc\Local Authority\30UN,13/05/2022,5.81,Spar,Items for Penwortham Live,Store Purchase,114800,COMU-Communities,JBA-Community Involvement
South Ribble Council,http://Statistics.Data.gov.uk\Doc\Local Authority\30UN,13/05/2022,13.95,Bread and Butter,Items for Penwortham Live,Store Purchase,114800,COMU-Communities,JBA-Community Involvement
South Ribble Council,http://Statistics.Data.gov.uk\Doc\Local Authority\30UN,13/05/2022,27.90,Bread and Butter,Items for Penwortham Live,Store Purchase,114800,COMU-Communities,JBA-Community Involvement
South Ribble Council,http://Statistics.Data.gov.uk\Doc\Local Authority\30UN,18/05/2022,10.10,Berrys,Items for a bench project,Store Purchase,114803,COMU-Communities,JBA-Community Involvement
South Ribble Council,http://Statistics.Data.gov.uk\Doc\Local Authority\30UN,19/05/2022,9.49,Co Op,Items for the Hub,Store Purchase,101019,COMU-Communities,JBA-Community Involvement
South Ribble Council,http://Statistics.Data.gov.uk\Doc\Local Authority\30UN,23/05/2022,21.00,Tesco,Items for Boost Fund Plus project,Store Purchase,114800,COMU-Communities,JBA-Community Involvement
South Ribble Council,http://Statistics.Data.gov.uk\Doc\Local Authority\30UN,24/05/2022,17.88,Home Bargains,Footwear for Leyland Hotel residents,Store Purchase,114800,COMU-Communities,JBA-Community Involvement
South Ribble Council,http://Statistics.Data.gov.uk\Doc\Local Authority\30UN,24/05/2022,42.92,Home Bargains,Footwear for Leyland Hotel residents,Store Purchase,114800,COMU-Communities,JBA-Community Involvement
South Ribble Council,http://Statistics.Data.gov.uk\Doc\Local Authority\30UN,25/05/2022,28.00,Matalan,Clothes for residents of Leyland Hotel,Store Purchase,114800,COMU-Communities,JBA-Community Involvement
South Ribble Council,http://Statistics.Data.gov.uk\Doc\Local Authority\30UN,25/05/2022,32.00,Matalan,Clothes for residents of Leyland Hotel,Store Purchase,114800,COMU-Communities,JBA-Community Involvement
South Ribble Council,http://Statistics.Data.gov.uk\Doc\Local Authority\30UN,25/05/2022,119.88,Spotify Online,Annual Subscription,Online Purchase,113100,COMU-Communities,JBA-Community Involvement
South Ribble Council,http://Statistics.Data.gov.uk\Doc\Local Authority\30UN,25/05/2022,119.88,Spotify Online,Annual subscription,Online Purchase,113100,COMU-Communities,JBA-Community Involvement
South Ribble Council,http://Statistics.Data.gov.uk\Doc\Local Authority\30UN,25/05/2022,200.00,Asda,Voucher for Hub project,Store Purchase,114802,COMU-Communities,JBA-Community Involvement
South Ribble Council,http://Statistics.Data.gov.uk\Doc\Local Authority\30UN,26/05/2022,1.50,Fishergate car park,Parking,Store Purchase,114800,COMU-Communities,JBA-Community Involvement
South Ribble Council,http://Statistics.Data.gov.uk\Doc\Local Authority\30UN,26/05/2022,14.00,Asda George,Item for resident of Leyland Hotel,Online Purchase,114800,COMU-Communities,JBA-Community Involvement
South Ribble Council,http://Statistics.Data.gov.uk\Doc\Local Authority\30UN,26/05/2022,40.60,Primark,Flip flops shoes for residents of Leyland Hotel,Store Purchase,114800,COMU-Communities,JBA-Community Involvement
South Ribble Council,http://Statistics.Data.gov.uk\Doc\Local Authority\30UN,27/05/2022,252.00,Holiday Inn,Temporary Accommodation placements,Online Purchase,124050,COMU-Communities,JBA-Community Involvement
South Ribble Council,http://Statistics.Data.gov.uk\Doc\Local Authority\30UN,27/05/2022,252.00,Holiday Inn,Temporary Accommodation placements,Online Purchase,124050,COMU-Communities,JBA-Community Involvement
South Ribble Council,http://Statistics.Data.gov.uk\Doc\Local Authority\30UN,30/05/2022,15.20,Hurst Grange Cafe,Use of room and refreshments,Store Purchase,114800,COMU-Communities,JBA-Community Involvement
South Ribble Council,http://Statistics.Data.gov.uk\Doc\Local Authority\30UN,06/06/2022,8.96,BIKEABILITY TRUST,Pack of Level 1 certificates,Online Purchase,113100,COMU-Communities,JBA-Community Involvement
South Ribble Council,http://Statistics.Data.gov.uk\Doc\Local Authority\30UN,07/06/2022,6.99,Co Op,Food for Hub,Store Purchase,101019,COMU-Communities,JBA-Community Involvement
South Ribble Council,http://Statistics.Data.gov.uk\Doc\Local Authority\30UN,08/06/2022,4.15,Tesco,Items for PASTA after school club,Store Purchase,113110,COMU-Communities,JBA-Community Involvement
South Ribble Council,http://Statistics.Data.gov.uk\Doc\Local Authority\30UN,08/06/2022,58.10,Tesco,Cooking equipment for a project,Store Purchase,113110,COMU-Communities,JBA-Community Involvement
South Ribble Council,http://Statistics.Data.gov.uk\Doc\Local Authority\30UN,08/06/2022,76.68,The Range,Cooking equipment for a project,Store Purchase,113110,COMU-Communities,JBA-Community Involvement
South Ribble Council,http://Statistics.Data.gov.uk\Doc\Local Authority\30UN,09/06/2022,28.75,Sainsburys,School uniform/clothing,Store Purchase,114800,COMU-Communities,JBA-Community Involvement
South Ribble Council,http://Statistics.Data.gov.uk\Doc\Local Authority\30UN,09/06/2022,61.00,Matalan,School uniform/clothing,Store Purchase,114800,COMU-Communities,JBA-Community Involvement
South Ribble Council,http://Statistics.Data.gov.uk\Doc\Local Authority\30UN,13/06/2022,79.37,Home Bargain,Items for Leyland Hotel,Store Purchase,114800,COMU-Communities,JBA-Community Involvement
South Ribble Council,http://Statistics.Data.gov.uk\Doc\Local Authority\30UN,15/06/2022,25.17,Tesco,Items for PASTA club,Store Purchase,113110,COMU-Communities,JBA-Community Involvement
South Ribble Council,http://Statistics.Data.gov.uk\Doc\Local Authority\30UN,21/06/2022,12.19,Co op,Items for food parcels for Hub,Store Purchase,101019,COMU-Communities,JBA-Community Involvement
South Ribble Council,http://Statistics.Data.gov.uk\Doc\Local Authority\30UN,22/06/2022,16.07,Tesco,Items for PASTA club,Store Purchase,113110,COMU-Communities,JBA-Community Involvement
South Ribble Council,http://Statistics.Data.gov.uk\Doc\Local Authority\30UN,23/06/2022,0.75,Co op,Item for Community Development work,Store Purchase,114800,COMU-Communities,JBA-Community Involvement
South Ribble Council,http://Statistics.Data.gov.uk\Doc\Local Authority\30UN,23/06/2022,40.00,Co op,Vouchers for Co-op,Store Purchase,114804,COMU-Communities,JBA-Community Involvement
South Ribble Council,http://Statistics.Data.gov.uk\Doc\Local Authority\30UN,29/06/2022,17.80,Tesco,Items for PASTA club,Store Purchase,113110,COMU-Communities,JBA-Community Involvement
South Ribble Council,http://Statistics.Data.gov.uk\Doc\Local Authority\30UN,29/06/2022,32.00,Matalan,Clothing for asylum seekers,Store Purchase,114800,COMU-Communities,JBA-Community Involvement
South Ribble Council,http://Statistics.Data.gov.uk\Doc\Local Authority\30UN,29/06/2022,37.00,ARGOS,Support for asylum seekers,Store Purchase,114800,COMU-Communities,JBA-Community Involvement
South Ribble Council,http://Statistics.Data.gov.uk\Doc\Local Authority\30UN,29/06/2022,722.50,Matalan,Clothing for asylum seekers,Store Purchase,114800,COMU-Communities,JBA-Community Involvement
South Ribble Council,http://Statistics.Data.gov.uk\Doc\Local Authority\30UN,30/06/2022,9.30,Tesco,Interview lunches,Store Purchase,114800,COMU-Communities,JBA-Community Involvement
South Ribble Council,http://Statistics.Data.gov.uk\Doc\Local Authority\30UN,30/06/2022,10.66,Tesco,Volunteer food,Store Purchase,114801,COMU-Communities,JBA-Community Involvement
South Ribble Council,http://Statistics.Data.gov.uk\Doc\Local Authority\30UN,30/06/2022,30.96,New Longton Post Office,Items for Western Neighbourhood Forum,Store Purchase,114800,COMU-Communities,JBA-Community Involvement
South Ribble Council,http://Statistics.Data.gov.uk\Doc\Local Authority\30UN,11/05/2022,17.98,Amazon,Amazon,Online Purchase,115250,POLY-Policy,JFA-Communications and Visitor
South Ribble Council,http://Statistics.Data.gov.uk\Doc\Local Authority\30UN,23/05/2022,850.74,4inprintdirect,No valid invoice at time of approval,Online Purchase,115250,POLY-Policy,JFA-Communications and Visitor
South Ribble Council,http://Statistics.Data.gov.uk\Doc\Local Authority\30UN,25/05/2022,"1,675.20",Buddah Group Ltd,Buddah Group Fencing for Music in the Park,Online Purchase,114150,POLY-Policy,JFA-Communications and Visitor
South Ribble Council,http://Statistics.Data.gov.uk\Doc\Local Authority\30UN,15/06/2022,100.00,Morrisons,Morrisons Gift Card - 50 ONE4ALL Gift Card - 50,Store Purchase,115250,POLY-Policy,JFA-Communications and Visitor
South Ribble Council,http://Statistics.Data.gov.uk\Doc\Local Authority\30UN,20/06/2022,24.63,Meta,Meta Facebook Ads (SR In Bloom),Online Purchase,114800,POLY-Policy,JFA-Communications and Visitor
South Ribble Council,http://Statistics.Data.gov.uk\Doc\Local Authority\30UN,20/06/2022,58.95,Go Outdoors,Go Outdoors voucher for prize,Online Purchase,115250,POLY-Policy,JFA-Communications and Visitor
South Ribble Council,http://Statistics.Data.gov.uk\Doc\Local Authority\30UN,20/06/2022,80.24,Meta,Meta Facebook Ads (Taste of Leyland),Online Purchase,114100,POLY-Policy,JFA-Communications and Visitor
South Ribble Council,http://Statistics.Data.gov.uk\Doc\Local Authority\30UN,20/06/2022,88.22,Meta,Meta Facebook Ads (SR Leisure),Online Purchase,115250,POLY-Policy,JFA-Communications and Visitor
South Ribble Council,http://Statistics.Data.gov.uk\Doc\Local Authority\30UN,20/06/2022,106.91,Meta,Meta Facebook Ads (SR Biodiversity),Online Purchase,112400,POLY-Policy,JFA-Communications and Visitor
South Ribble Council,http://Statistics.Data.gov.uk\Doc\Local Authority\30UN,25/06/2022,8.76,Meta,Meta Facebook Ads (SR In Bloom),Online Purchase,114800,POLY-Policy,JFA-Communications and Visitor
South Ribble Council,http://Statistics.Data.gov.uk\Doc\Local Authority\30UN,25/06/2022,16.09,Meta,Meta Facebook Ads (SR Biodiversity),Online Purchase,112400,POLY-Policy,JFA-Communications and Visitor
South Ribble Council,http://Statistics.Data.gov.uk\Doc\Local Authority\30UN,25/06/2022,22.69,Meta,Meta Facebook Ads (SR Leisure),Online Purchase,115250,POLY-Policy,JFA-Communications and Visitor
South Ribble Council,http://Statistics.Data.gov.uk\Doc\Local Authority\30UN,18/05/2022,27.96,AVANT GARDEN CENTRE,Plant for NAME REDACTED - Retiring Gift,Store Purchase,143750,GOVE-Governance,JDC-Corporate Support
South Ribble Council,http://Statistics.Data.gov.uk\Doc\Local Authority\30UN,18/05/2022,117.30,Tesco,Wine for Mayoral Installation,Store Purchase,143750,GOVE-Governance,JDC-Corporate Support
South Ribble Council,http://Statistics.Data.gov.uk\Doc\Local Authority\30UN,20/05/2022,64.00,FARINGTON LODGE,Farington Lodge - Mayoral,Store Purchase,402007,GOVE-Governance,JDC-Corporate Support
South Ribble Council,http://Statistics.Data.gov.uk\Doc\Local Authority\30UN,09/06/2022,858.00,Crowne Plaza,Accommodation,Accomodation,143700,GOVE-Governance,JDC-Corporate Support
South Ribble Council,http://Statistics.Data.gov.uk\Doc\Local Authority\30UN,10/06/2022,15.00,Freethought,IT,Online Purchase,133000,GOVE-Governance,JDC-Corporate Support
South Ribble Council,http://Statistics.Data.gov.uk\Doc\Local Authority\30UN,14/06/2022,18.95,Amazon,Licensing - Permit Holders,Online Purchase,113691,GOVE-Governance,JDC-Corporate Support
South Ribble Council,http://Statistics.Data.gov.uk\Doc\Local Authority\30UN,14/06/2022,56.85,Amazon,Licensing Permit Holders,Online Purchase,113691,GOVE-Governance,JDC-Corporate Support
South Ribble Council,http://Statistics.Data.gov.uk\Doc\Local Authority\30UN,22/06/2022,473.80,Avanti,invoice attached,Rail Fare,115600,GOVE-Governance,JDC-Corporate Support
South Ribble Council,http://Statistics.Data.gov.uk\Doc\Local Authority\30UN,27/06/2022,174.00,RHE training,Training course for NAME REDACTED,Online Purchase,102000,GOVE-Governance,JDC-Corporate Support
South Ribble Council,http://Statistics.Data.gov.uk\Doc\Local Authority\30UN,30/06/2022,90.72,Viking Direct,Clipboards for annual canvass,Online Purchase,143600,GOVE-Governance,JDC-Corporate Support
South Ribble Council,http://Statistics.Data.gov.uk\Doc\Local Authority\30UN,02/04/2022,-26.10,Amazon,Amazon ASD accessories refund,Online Purchase,133000,CDIG-Customer and Digital,JCC-Information Services
South Ribble Council,http://Statistics.Data.gov.uk\Doc\Local Authority\30UN,02/04/2022,345.35,amazon,Amazon goods - iPad cases wall mounts,Online Purchase,133000,CDIG-Customer and Digital,JCC-Information Services
South Ribble Council,http://Statistics.Data.gov.uk\Doc\Local Authority\30UN,06/04/2022,-175.96,Amazon,Amazon refund Beelta Store,Online Purchase,133000,CDIG-Customer and Digital,JCC-Information Services
South Ribble Council,http://Statistics.Data.gov.uk\Doc\Local Authority\30UN,11/04/2022,15.00,freethought,Domain Registration - jubilee-gardens.co.uk - 1 Year/s (10/06/2022 - 09/06/2023) DNS Management * 7.50 GBP Domain Registration,Online Purchase,133000,CDIG-Customer and Digital,JCC-Information Services
South Ribble Council,http://Statistics.Data.gov.uk\Doc\Local Authority\30UN,30/04/2022,"2,324.05",Microsoft,Microsoft,Online Purchase,133000,CDIG-Customer and Digital,JCC-Information Services
South Ribble Council,http://Statistics.Data.gov.uk\Doc\Local Authority\30UN,05/05/2022,431.64,Zoom,Zoom licences,Online Purchase,133000,CDIG-Customer and Digital,JCC-Information Services
South Ribble Council,http://Statistics.Data.gov.uk\Doc\Local Authority\30UN,09/05/2022,"2,644.94",Microsoft,Microsoft storage,Online Purchase,133000,CDIG-Customer and Digital,JCC-Information Services
South Ribble Council,http://Statistics.Data.gov.uk\Doc\Local Authority\30UN,09/05/2022,"2,684.77",Microsoft,Storage,Online Purchase,133000,CDIG-Customer and Digital,JCC-Information Services
South Ribble Council,http://Statistics.Data.gov.uk\Doc\Local Authority\30UN,24/05/2022,215.82,Zoom,ZoomUS REDACTED,Online Purchase,133000,CDIG-Customer and Digital,JCC-Information Services
South Ribble Council,http://Statistics.Data.gov.uk\Doc\Local Authority\30UN,30/05/2022,7.38,CP Ink,HP Ink cartridge -,Online Purchase,133000,CDIG-Customer and Digital,JCC-Information Services
South Ribble Council,http://Statistics.Data.gov.uk\Doc\Local Authority\30UN,30/05/2022,66.22,Amazon,Amazon cables,Online Purchase,133000,CDIG-Customer and Digital,JCC-Information Services
South Ribble Council,http://Statistics.Data.gov.uk\Doc\Local Authority\30UN,09/06/2022,24.00,Freethought,Certificate,Online Purchase,133000,CDIG-Customer and Digital,JCC-Information Services
South Ribble Council,http://Statistics.Data.gov.uk\Doc\Local Authority\30UN,09/06/2022,"2,845.91",Microsoft,Microsoft storage,Online Purchase,133000,CDIG-Customer and Digital,JCC-Information Services
South Ribble Council,http://Statistics.Data.gov.uk\Doc\Local Authority\30UN,12/06/2022,175.56,Amazon,Amazon - charger cables for bin wagons,Online Purchase,133000,CDIG-Customer and Digital,JCC-Information Services
South Ribble Council,http://Statistics.Data.gov.uk\Doc\Local Authority\30UN,13/06/2022,27.00,EE,3 x 9 top up,Online Purchase,133000,CDIG-Customer and Digital,JCC-Information Services
South Ribble Council,http://Statistics.Data.gov.uk\Doc\Local Authority\30UN,20/06/2022,24.00,Freethought,Freethought SSL cert,Online Purchase,133000,CDIG-Customer and Digital,JCC-Information Services
South Ribble Council,http://Statistics.Data.gov.uk\Doc\Local Authority\30UN,24/06/2022,215.82,Zoom Video Communications,Charge Name: Standard Pro Monthly Quantity: 15 Unit Price: GBP11.99,Online Purchase,133000,CDIG-Customer and Digital,JCC-Information Services
